bitfinex-derivatives/quotes_ETHF0:USTF0_20250116
["timestamp","ask_amount","ask_price","bid_price","bid_amount"]
[1737028227102,0.5974,3348.4,3348.3,0.59741]
[1737028227303,3.6967,3348.5,3348.0,0.4597]
[1737028227500,4.29408,3348.5,3348.4,0.59739]
[1737028228492,3.2078,3348.5,3348.4,0.59739]
[1737028229102,3.80518,3348.5,3348.4,0.59739]
[1737028229303,3.2078,3348.5,3348.4,0.59739]
[1737028229800,3.80518,3348.5,3348.4,0.59739]
[1737028230899,0.59741,3348.4,3348.3,0.59739]
[1737028231204,3.80519,3348.5,3348.4,0.59739]
[1737028231408,3.2078,3348.5,3348.4,0.59739]
[1737028232501,10.54194986,3349.7,3349.6,0.59718]
[1737028232714,10.54194986,3349.7,3349.6,5.05298]
[1737028233006,10.54194986,3349.7,3349.6,7.42861715]
[1737028233394,0.59707,3350.2,3349.9,0.59712]
[1737028233598,0.475,3350.3,3349.6,6.83143715]
[1737028233599,0.475,3350.3,3349.6,5.58343715]
[1737028233797,0.59711,3350.0,3349.9,1.248]
[1737028234002,0.59711,3350.0,3349.6,5.58343715]
[1737028234003,1.96765,3350.3,3349.6,6.83143715]
[1737028234204,0.59716,3349.8,3349.6,6.83143715]
[1737028234403,0.59716,3349.7,3349.6,6.83143715]
[1737028235300,0.59714,3349.9,3349.6,6.83143715]
[1737028235503,0.59713,3349.9,3349.6,7.42860715]
[1737028235707,0.59715,3349.8,3349.6,6.83143715]
[1737028235899,0.59707,3350.2,3349.6,7.42861715]
[1737028236099,0.59714,3349.9,3349.6,7.42861715]
[1737028236304,0.475,3350.3,3349.6,6.83143715]
[1737028236606,1.96765,3350.3,3349.6,6.83143715]
[1737028236901,3.2078,3350.0,3349.6,5.58343715]
[1737028237207,0.59714,3349.8,3349.7,1.248]
[1737028238500,3.2078,3350.0,3349.6,5.58343715]
[1737028238701,0.59715,3349.8,3349.7,1.248]
[1737028241008,3.2078,3350.0,3349.6,5.58343715]
[1737028241205,1.48976,3349.7,3349.6,3.2078]
[1737028242698,0.8926,3349.7,3349.3,3.62263715]
[1737028242907,0.59722,3349.4,3349.3,4.21986715]
[1737028243208,0.8926,3349.7,3349.3,3.62263715]
[1737028243413,0.8926,3349.7,3349.6,2.97281715]
[1737028243608,0.8926,3349.7,3349.6,6.18061715]
[1737028243609,0.4476,3349.7,3349.6,6.18061715]
[1737028244111,1.04476,3349.7,3349.6,6.18061715]
[1737028244514,1.04476,3349.7,3349.6,5.58343715]
[1737028246804,0.4476,3349.7,3349.3,2.37563715]
[1737028247011,0.59723,3349.4,3349.3,2.37563715]
[1737028248813,0.4521,3349.6,3349.1,3.2078]
[1737028249014,0.59725,3349.2,3349.1,3.2078]
[1737028249510,0.4521,3349.6,3349.1,3.2078]
[1737028249716,0.4521,3349.6,3349.5,6.18062715]
[1737028249717,0.59718,3349.6,3349.5,6.18062715]
[1737028249911,0.4522,3349.6,3349.5,6.18062715]
[1737028250518,1.04938,3349.6,3349.5,2.97283715]
[1737028251919,1.50038,3349.6,3349.5,2.97283715]
[1737028252214,0.9032,3349.6,3349.5,2.97283715]
[1737028253216,0.4522,3349.6,3349.5,2.97283715]
[1737028253615,0.451,3350.1,3349.5,5.58343715]
[1737028253815,1.04811,3350.1,3350.0,0.59711]
[1737028254915,1.49601,3350.1,3350.0,0.59711]
[1737028255615,0.8989,3350.1,3350.0,0.59711]
[1737028256614,3.2078,3350.4,3349.9,7.07623715]
[1737028256814,4.1476,3350.8,3350.6,0.59698]
[1737028257019,0.597,3350.7,3350.6,0.59698]
[1737028258318,0.59701,3350.7,3350.6,0.59698]
[1737028259420,4.44081763,3385.1,3350.9,0.59693]
[1737028259421,0.59695,3351.0,3350.9,0.59693]
[1737028259608,0.59695,3351.0,3350.9,2.97256715]
[1737028260319,0.59695,3350.9,3350.8,0.59695]
[1737028260518,3.2078,3351.2,3350.9,0.59693]
[1737028260519,0.59694,3351.0,3350.9,0.59693]
[1737028261218,0.4791,3351.1,3350.7,0.4779]
[1737028261219,1.07603,3351.1,3351.0,0.59693]
[1737028261421,0.4791,3351.1,3351.0,0.59693]
[1737028261617,3.8047,3351.2,3351.1,0.59691]
[1737028261814,0.4497,3351.5,3351.1,1.256]
[1737028262020,0.5969,3351.2,3351.1,1.256]
[1737028263017,0.59693,3351.0,3350.9,4.4638]
[1737028263319,1.04342,3351.1,3351.0,0.59693]
[1737028263718,0.59693,3351.0,3350.9,1.256]
[1737028263918,0.59693,3351.0,3350.9,1.85295]
[1737028264117,1.04342,3351.1,3351.0,0.59693]
[1737028264620,1.04341,3351.1,3351.0,0.59693]
[1737028264923,0.59693,3351.0,3350.9,4.22857715]
[1737028265125,0.59693,3351.1,3351.0,0.59693]
[1737028265319,0.59693,3351.1,3350.9,3.63163715]
[1737028265320,0.59693,3351.0,3350.9,1.256]
[1737028265512,0.59693,3351.0,3350.9,1.85295]
[1737028266424,0.4736,3351.2,3350.6,2.37563715]
[1737028266732,0.59698,3350.8,3350.7,1.85197]
[1737028267026,0.59698,3350.8,3350.7,1.255]
[1737028267526,0.59696,3350.9,3350.7,1.255]
[1737028267721,0.59695,3350.9,3350.8,0.59696]
[1737028267925,0.59697,3350.9,3350.7,1.85197]
[1737028268220,0.4702,3350.8,3350.7,1.255]
[1737028268414,0.4702,3350.8,3350.7,1.85198]
[1737028268613,1.06717,3350.8,3350.7,1.255]
[1737028268825,0.4702,3350.8,3350.5,0.59701]
[1737028269125,0.597,3350.6,3350.5,0.59701]
[1737028269317,0.597,3350.6,3350.5,1.85201]
[1737028269519,0.4614,3350.7,3350.6,0.597]
[1737028270328,1.05838,3350.7,3350.6,0.597]
[1737028270818,0.4614,3350.7,3350.5,1.255]
[1737028271020,0.597,3350.6,3350.5,1.85201]
[1737028271220,0.597,3350.6,3350.5,0.59701]
[1737028271527,0.597,3350.6,3350.5,1.85201]
[1737028272020,0.4614,3350.7,3350.6,0.597]
[1737028276924,0.4702,3350.8,3350.5,1.255]
[1737028277126,0.4702,3350.8,3350.7,0.59698]
[1737028277520,0.4702,3350.8,3350.7,2.97261715]
[1737028282626,0.4702,3350.8,3350.7,6.18041715]
[1737028288334,1.06552,3351.1,3351.0,0.59693]
[1737028288527,1.54282,3351.1,3351.0,0.59693]
[1737028289833,0.9459,3351.1,3351.0,0.59693]
[1737028291941,1.54281,3351.1,3351.0,0.59693]
[1737028292228,0.59695,3351.0,3350.9,0.59693]
[1737028293042,0.9459,3351.1,3350.7,3.2078]
[1737028293336,0.59697,3350.9,3350.8,0.59695]
[1737028294029,0.9459,3351.1,3350.6,1.248]
[1737028294236,0.59698,3350.7,3350.6,1.84499]
[1737028294430,0.59704,3350.4,3350.3,3.2078]
[1737028294933,0.59709,3350.1,3350.0,1.8451]
[1737028295130,0.59709,3350.1,3350.0,1.248]
[1737028295630,0.59709,3350.1,3349.8,3.80493]
[1737028295631,0.59713,3349.9,3349.8,3.80493]
[1737028295934,0.59713,3349.9,3349.8,3.2078]
[1737028297035,0.5972,3349.5,3349.4,3.62363715]
[1737028297935,0.5972,3349.5,3349.3,3.2078]
[1737028297936,0.4506,3349.6,3349.3,3.2078]
[1737028298134,0.59721,3349.5,3349.4,0.59721]
[1737028298532,0.4506,3349.6,3349.3,3.2078]
[1737028298732,0.59722,3349.4,3349.3,3.80502]
[1737028299634,0.59722,3349.4,3349.3,3.2078]
[1737028299836,0.59722,3349.4,3349.3,3.80503]
[1737028300141,0.59722,3349.4,3349.3,3.2078]
[1737028300331,0.59722,3349.4,3349.3,3.80503]
[1737028301033,0.59722,3349.4,3349.3,3.2078]
[1737028301537,0.59731,3348.9,3348.8,2.86803715]
[1737028301737,0.59731,3348.9,3348.8,2.37563715]
[1737028301942,0.59732,3348.8,3348.7,2.06926991]
[1737028302130,1.49305,3349.4,3348.7,1.47193991]
[1737028302131,0.9523,3349.1,3348.7,1.47193991]
[1737028302336,0.59731,3348.9,3348.8,0.59732]
[1737028302641,0.59731,3348.9,3348.7,3.84757706]
[1737028302642,0.9523,3349.1,3348.7,3.84757706]
[1737028302836,0.9523,3349.1,3348.7,4.44490706]
[1737028303043,0.9523,3349.1,3348.7,3.84757706]
[1737028303342,0.9523,3349.1,3348.7,4.44489706]
[1737028303343,0.59729,3349.0,3348.7,4.44489706]
[1737028303535,0.59732,3348.9,3348.7,4.44489706]
[1737028303839,0.59732,3348.9,3348.8,0.59732]
[1737028304440,0.9523,3349.1,3348.7,3.84757706]
[1737028304633,0.59731,3348.9,3348.8,0.59732]
[1737028305235,0.5973,3349.0,3348.9,0.5973]
[1737028306133,0.478,3349.1,3348.9,3.2078]
[1737028306335,0.4535,3349.5,3349.0,2.37563715]
[1737028306643,0.4535,3349.5,3349.3,2.37563715]
[1737028306844,0.4506,3349.6,3349.3,2.97285715]
[1737028307046,0.4506,3349.6,3349.3,2.37563715]
[1737028307344,0.59722,3349.4,3349.3,2.37563715]
[1737028307742,0.59724,3349.3,3349.2,0.59724]
[1737028308339,0.4506,3349.6,3349.0,2.37563715]
[1737028308544,0.59722,3349.4,3349.3,0.59722]
[1737028309248,0.4506,3349.6,3349.0,2.37563715]
[1737028309449,3.2078,3350.3,3349.3,5.58343715]
[1737028309741,0.59719,3349.6,3349.5,0.59718]
[1737028310347,0.9606,3349.7,3349.4,1.249]
[1737028310647,0.5972,3349.5,3349.4,1.249]
[1737028311537,0.59719,3349.6,3349.5,0.59719]
[1737028311944,0.5972,3349.5,3349.4,1.8462]
[1737028312443,0.59709,3350.1,3349.6,0.59718]
[1737028312748,2.37563715,3351.1,3350.1,1.49273]
[1737028312749,0.9409,3350.7,3350.1,1.49273]
[1737028312951,1.0526,3350.7,3350.6,0.597]
[1737028313546,0.4556,3350.7,3350.6,0.597]
[1737028313850,0.4556,3350.7,3350.6,3.8048]
[1737028314144,0.4474,3350.9,3350.6,3.2078]
[1737028314346,0.59697,3350.8,3350.7,0.59698]
[1737028314549,1.04435,3350.9,3350.8,0.59697]
[1737028314845,0.4474,3350.9,3350.7,0.59698]
[1737028315053,0.4474,3350.9,3350.6,3.2078]
[1737028315446,0.4474,3350.9,3350.7,0.59698]
[1737028315752,1.04435,3350.9,3350.7,0.59698]
[1737028315944,0.59697,3350.8,3350.7,0.59698]
[1737028316247,0.4474,3350.9,3350.6,3.2078]
[1737028316447,0.59698,3350.8,3350.7,0.59698]
[1737028316645,0.59698,3350.7,3350.6,3.2078]
[1737028319748,0.4474,3350.9,3350.6,3.2078]
[1737028320055,0.4474,3350.9,3350.8,0.59697]
[1737028320353,0.4474,3350.9,3350.6,3.2078]
[1737028320855,0.59698,3350.8,3350.7,0.59698]
[1737028321057,0.4474,3350.9,3350.6,3.2078]
[1737028321448,1.04435,3350.9,3350.8,0.59697]
[1737028321658,0.4474,3350.9,3350.8,0.59697]
[1737028322655,0.4474,3350.9,3350.7,2.37563715]
[1737028322954,0.4474,3350.9,3350.6,3.2078]
[1737028323155,0.59698,3350.8,3350.7,0.59697]
[1737028324649,0.4474,3350.9,3350.6,3.2078]
[1737028324958,0.59698,3350.8,3350.7,0.59697]
[1737028326956,0.59698,3350.7,3350.6,3.80479]
[1737028327353,0.59698,3350.7,3350.6,3.2078]
[1737028327959,0.9344,3350.9,3350.4,2.37563715]
[1737028328253,0.59701,3350.7,3350.6,0.59699]
[1737028328550,0.59701,3350.7,3350.6,3.80479]
[1737028328952,0.59698,3350.8,3350.7,0.59697]
[1737028329557,0.9344,3350.9,3350.6,3.80479]
[1737028329558,0.59698,3350.7,3350.6,3.80479]
[1737028329759,0.59698,3350.8,3350.7,0.59697]
[1737028330057,3.2078,3351.4,3350.7,3.86807715]
[1737028330357,0.59689,3351.3,3351.2,2.97251715]
[1737028330559,0.59689,3351.3,3351.2,3.61663715]
[1737028331751,0.59688,3351.4,3351.3,0.59688]
[1737028331951,0.59688,3351.3,3351.2,4.21352715]
[1737028332158,0.59688,3351.3,3351.2,3.61663715]
[1737028333857,0.59689,3351.2,3351.1,3.2078]
[1737028334057,1.05919,3351.2,3351.1,3.2078]
[1737028338262,1.05919,3351.2,3351.1,3.80471]
[1737028338465,0.59689,3351.2,3351.1,5.04571]
[1737028338670,0.4686,3351.5,3351.1,4.4488]
[1737028338865,0.4686,3351.5,3351.2,2.37563715]
[1737028339165,0.59687,3351.4,3351.3,0.59686]
[1737028339369,0.59686,3351.5,3351.4,0.59685]
[1737028339568,0.59688,3351.3,3351.2,3.42901715]
[1737028340763,0.59688,3351.3,3351.2,2.83213715]
[1737028340962,0.59688,3351.3,3351.2,2.37563715]
[1737028341763,0.5969,3351.2,3351.1,3.2078]
[1737028342070,0.5969,3351.2,3351.1,4.4488]
[1737028342557,0.5969,3351.2,3351.1,3.2078]
[1737028343761,3.2078,3351.2,3350.7,4.4488]
[1737028343961,0.59697,3350.8,3350.7,3.2078]
[1737028344869,0.59704,3350.4,3350.3,2.37563715]
[1737028345268,0.59704,3350.4,3349.9,0.4527]
[1737028345269,0.59707,3350.2,3350.1,2.37563715]
[1737028345970,1.04617,3350.2,3350.1,2.37563715]
[1737028347772,1.04617,3350.2,3349.8,6.82443715]
[1737028347773,0.59713,3349.9,3349.8,6.82443715]
[1737028347974,0.59713,3349.9,3349.8,5.58343715]
[1737028349069,0.59713,3349.9,3349.8,2.37563715]
[1737028350166,0.4491,3350.2,3349.6,1.241]
[1737028350367,1.49281,3350.0,3349.5,2.37563715]
[1737028350570,0.59718,3349.6,3349.5,2.37563715]
[1737028350975,0.5972,3349.5,3349.4,3.2078]
[1737028351270,0.5972,3349.5,3347.8,9.92717303]
[1737028351271,0.59729,3349.0,3348.9,2.37563715]
[1737028353080,0.59726,3349.2,3349.0,0.59728]
[1737028353274,0.9601,3349.4,3348.9,2.97292715]
[1737028353275,0.59728,3349.1,3348.9,2.97292715]
[1737028353769,0.9601,3349.4,3348.9,2.37563715]
[1737028353967,0.59729,3349.0,3348.9,2.37563715]
[1737028354476,0.59729,3349.0,3348.9,2.97294715]
[1737028354772,0.59729,3349.0,3348.9,2.37563715]
[1737028355173,0.9601,3349.4,3348.9,2.97293715]
[1737028355174,0.59728,3349.1,3348.9,2.97293715]
[1737028355670,0.9601,3349.4,3348.9,2.97293715]
[1737028355871,0.59728,3349.1,3348.9,2.37563715]
[1737028356074,0.59728,3349.1,3348.9,2.97292715]
[1737028356469,0.59726,3349.2,3349.0,0.59729]
[1737028356663,0.59726,3349.2,3348.9,2.37563715]
[1737028356968,0.59726,3349.2,3349.0,1.07338]
[1737028357166,0.4911,3349.4,3349.0,0.4761]
[1737028357371,1.08832,3349.4,3349.3,0.59723]
[1737028357570,0.4911,3349.4,3349.2,2.97288715]
[1737028357764,1.08833,3349.4,3349.2,2.37563715]
[1737028357980,1.08833,3349.4,3349.3,0.59723]
[1737028360378,0.4911,3349.4,3349.2,2.37563715]
[1737028360978,0.4911,3349.4,3349.2,2.97288715]
[1737028361177,0.4911,3349.4,3349.2,2.37563715]
[1737028361572,1.08832,3349.4,3349.2,2.37563715]
[1737028361779,1.08832,3349.4,3349.3,1.241]
[1737028362571,0.59722,3349.4,3349.3,1.241]
[1737028362775,3.2078,3349.5,3349.3,1.241]
[1737028363082,0.4837,3349.8,3349.3,1.241]
[1737028363279,0.59716,3349.7,3349.6,2.37563715]
[1737028364078,0.5972,3349.5,3349.4,3.2078]
[1737028364385,0.59721,3349.4,3349.3,3.61663715]
[1737028365086,0.59721,3349.4,3349.3,2.37563715]
[1737028365282,0.59721,3349.4,3349.3,3.61663715]
[1737028368595,1.97658,3349.8,3349.3,3.61663715]
[1737028368798,0.59721,3349.5,3349.4,3.2078]
[1737028370892,0.59721,3349.4,3349.3,3.61663715]
[1737028371197,0.59721,3349.4,3349.3,2.37563715]
[1737028371392,0.59721,3349.4,3349.3,1.241]
[1737028373200,0.59727,3349.1,3349.0,6.05953715]
[1737028373393,0.59727,3349.1,3349.0,7.30053715]
[1737028373806,0.59727,3349.1,3349.0,7.89781715]
[1737028374194,0.59727,3349.1,3349.0,7.30053715]
[1737028375100,0.59727,3349.1,3349.0,7.89781715]
[1737028375296,0.59726,3349.2,3349.1,0.59727]
[1737028375601,0.474,3349.5,3349.0,7.30053715]
[1737028375799,0.59727,3349.1,3349.0,7.89781715]
[1737028376096,0.59725,3349.2,3349.1,0.59725]
[1737028376298,0.474,3349.5,3349.2,0.59724]
[1737028376299,0.59724,3349.3,3349.2,0.59724]
[1737028376501,0.59722,3349.4,3349.3,0.59722]
[1737028376695,0.4742,3349.6,3349.0,7.30053715]
[1737028376901,0.59721,3349.5,3349.4,0.59721]
[1737028377690,0.4742,3349.6,3349.3,2.37563715]
[1737028378200,1.07139,3349.6,3349.5,0.59719]
[1737028379598,3.6915,3349.8,3349.4,3.2078]
[1737028379803,3.2078,3350.3,3349.6,2.37563715]
[1737028380104,0.59703,3350.5,3349.9,2.37563715]
[1737028380296,0.59705,3350.4,3350.3,0.59704]
[1737028380604,0.59702,3350.5,3350.4,0.59703]
[1737028380803,1.4151,3350.7,3350.2,5.58343715]
[1737028381201,0.59704,3350.4,3350.3,0.59704]
[1737028382599,0.59705,3350.3,3350.2,3.2078]
[1737028383002,2.90758,3350.7,3350.2,3.2078]
[1737028383308,1.4151,3350.7,3350.2,5.58343715]
[1737028383499,0.59703,3350.5,3350.4,0.59702]
[1737028384101,0.59701,3350.6,3350.5,0.597]
[1737028385697,0.9379,3350.7,3350.3,0.4543]
[1737028385902,1.53489,3350.7,3350.6,0.597]
[1737028387404,1.05299,3350.7,3350.6,0.597]
[1737028388507,0.456,3350.7,3350.6,0.597]
[1737028388699,0.4487,3351.0,3350.6,0.597]
[1737028388906,1.04564,3351.0,3350.9,0.59695]
[1737028389407,0.59696,3350.9,3350.8,0.59695]
[1737028390300,0.59696,3350.8,3350.7,5.04577]
[1737028390601,0.59696,3350.8,3350.7,5.04578]
[1737028390801,0.59696,3350.8,3350.7,1.83798]
[1737028391305,0.59696,3350.8,3350.7,1.241]
[1737028392608,1.96821,3350.9,3350.5,1.241]
[1737028392809,0.597,3350.6,3350.5,1.241]
[1737028393007,0.597,3350.6,3350.5,1.83802]
[1737028393306,0.597,3350.6,3350.5,4.21365715]
[1737028395299,0.59698,3350.8,3350.7,0.59696]
[1737028395603,0.597,3350.7,3350.6,0.59698]
[1737028398609,0.4487,3351.0,3350.5,3.61663715]
[1737028398805,0.4487,3351.0,3350.8,0.59694]
[1737028398806,0.59697,3350.9,3350.8,0.59694]
[1737028399103,0.597,3350.7,3350.6,0.59697]
[1737028401104,0.4487,3351.0,3350.5,3.61663715]
[1737028401304,0.59697,3350.8,3350.7,0.59695]
[1737028401909,0.597,3350.7,3350.6,0.59698]
[1737028402104,0.597,3350.6,3350.5,4.21364715]
[1737028402305,0.597,3350.6,3350.5,2.97264715]
[1737028402508,0.597,3350.6,3350.5,4.21364715]
[1737028403412,0.59699,3350.8,3350.7,0.59696]
[1737028403612,0.4487,3351.0,3350.5,3.61663715]
[1737028403813,0.597,3350.7,3350.6,0.59698]
[1737028404509,0.4487,3351.0,3350.9,0.59694]
[1737028404710,0.4551,3351.1,3351.0,0.59693]
[1737028404909,1.05201,3351.1,3351.0,0.59693]
[1737028405412,0.4551,3351.1,3351.0,0.59693]
[1737028405615,1.05201,3351.1,3351.0,0.59693]
[1737028406411,0.4551,3351.1,3351.0,0.59693]
[1737028407709,1.05201,3351.1,3351.0,0.59693]
[1737028408112,0.4551,3351.1,3351.0,0.59693]
[1737028409209,0.59688,3351.3,3351.2,0.59689]
[1737028409416,0.4464,3351.3,3351.2,1.83689]
[1737028410510,0.4464,3351.3,3351.2,4.21252715]
[1737028413513,0.4464,3351.3,3351.2,1.83689]
[1737028415919,0.4736,3351.7,3351.6,0.59682]
[1737028416117,1.5315,3351.7,3351.6,0.59682]
[1737028416518,0.4611,3351.7,3351.6,0.59682]
[1737028417116,0.9521,3351.7,3351.6,0.59682]
[1737028417524,1.5489,3351.7,3351.6,0.59682]
[1737028418017,0.9521,3351.7,3351.6,1.83682]
[1737028419723,1.5489,3351.7,3351.6,1.83682]
[1737028420022,0.9521,3351.7,3351.4,2.37563715]
[1737028420216,1.54892,3351.7,3351.6,0.59682]
[1737028420924,0.9521,3351.7,3351.6,0.59682]
[1737028421221,1.5489,3351.7,3351.6,0.59682]
[1737028422813,0.9521,3351.7,3351.6,0.59682]
[1737028423129,1.5489,3351.7,3351.6,0.59682]
[1737028423822,0.9521,3351.7,3351.6,0.59682]
[1737028424021,9.302173,3352.5,3352.4,0.59668]
[1737028424213,9.302173,3352.5,3352.4,7.42011715]
[1737028424720,9.302173,3352.5,3352.4,7.52226594]
[1737028424920,9.302173,3352.5,3352.4,6.38662879]
[1737028425531,12.509973,3353.5,3352.5,4.47496]
[1737028425821,0.9341,3353.4,3353.3,0.59652]
[1737028426020,0.9341,3353.4,3353.3,2.20235566]
[1737028426220,9.302173,3353.5,3353.4,0.5965]
[1737028426416,3.2078,3354.0,3353.7,0.59644]
[1737028426621,3.2078,3354.0,3353.1,1.83655]
[1737028426622,1.49108,3353.8,3353.1,1.83655]
[1737028426823,0.59652,3353.3,3353.1,1.83655]
[1737028427019,1.4516,3353.2,3353.1,1.83655]
[1737028427326,0.9593,3353.2,3353.1,2.20135175]
[1737028427724,0.9593,3353.2,3353.1,0.36480175]
[1737028428025,0.9593,3353.2,3353.1,1.83655]
[1737028428226,0.9593,3353.2,3353.1,0.59655]
[1737028428531,1.55584,3353.2,3353.1,0.59655]
[1737028428826,0.9593,3353.2,3353.1,0.59655]
[1737028429028,0.9593,3353.2,3353.1,1.83655]
[1737028429629,1.55584,3353.2,3353.1,0.59655]
[1737028429820,1.55584,3353.2,3353.1,1.83655]
[1737028430228,1.55584,3353.2,3353.1,0.59655]
[1737028430429,1.55584,3353.2,3353.1,1.83655]
[1737028430623,1.55584,3353.2,3353.1,1.24]
[1737028430817,1.55584,3353.2,3353.1,1.83655]
[1737028431225,1.55584,3353.2,3353.1,1.24]
[1737028431524,0.9593,3353.2,3353.0,0.59656]
[1737028431721,0.59657,3353.0,3352.9,2.97221715]
[1737028431923,0.59657,3353.1,3353.0,0.59657]
[1737028432226,0.59655,3353.1,3352.9,2.97220715]
[1737028432427,0.59655,3353.1,3353.0,0.59657]
[1737028433021,0.59657,3353.0,3352.9,2.97221715]
[1737028433220,0.59657,3353.1,3353.0,0.59656]
[1737028433426,0.59657,3353.0,3352.9,2.97221715]
[1737028433826,0.59657,3353.0,3352.9,2.37563715]
[1737028434125,0.59657,3353.0,3352.9,2.97222715]
[1737028434426,0.59657,3353.0,3352.9,2.37563715]
[1737028435331,0.9593,3353.2,3352.6,5.58343715]
[1737028435630,0.59662,3352.8,3352.7,1.239]
[1737028436034,0.59662,3352.8,3352.7,1.83562]
[1737028436422,0.59662,3352.8,3352.7,1.239]
[1737028436618,0.59662,3352.7,3352.6,5.58343715]
[1737028436821,1.07782,3352.7,3352.6,7.41907715]
[1737028437029,0.4812,3352.7,3352.6,7.41907715]
[1737028439233,1.0849,3352.9,3352.8,0.59661]
[1737028439730,0.59662,3352.8,3352.7,0.59662]
[1737028440733,1.08489,3352.9,3352.8,0.59661]
[1737028441129,0.59662,3352.8,3352.7,0.59661]
[1737028441524,1.0849,3352.9,3352.8,0.59661]
[1737028441730,0.4883,3352.9,3352.6,6.82243715]
[1737028442033,0.59662,3352.8,3352.7,0.59661]
[1737028442334,0.59662,3352.8,3352.7,0.96090584]
[1737028443029,0.59662,3352.8,3352.7,4.16870584]
[1737028443832,1.0849,3352.9,3352.8,0.59661]
[1737028444035,0.4562,3353.1,3352.8,0.36429584]
[1737028444336,1.05275,3353.1,3353.0,2.37563715]
[1737028444528,1.05275,3353.1,3353.0,2.97220715]
[1737028444832,1.05275,3353.1,3353.0,2.37563715]
[1737028445533,0.59659,3352.9,3352.8,1.0627]
[1737028445732,0.59659,3352.9,3352.8,1.42714831]
[1737028446238,0.59659,3352.9,3352.8,0.36444831]
[1737028446827,0.59668,3352.4,3352.3,4.4468]
[1737028447133,3.2078,3353.0,3352.5,0.59664]
[1737028447134,0.59666,3352.6,3352.5,0.59664]
[1737028447438,0.59663,3352.7,3352.6,0.59661]
[1737028447735,3.6574,3353.0,3352.5,2.37563715]
[1737028447935,0.59662,3352.8,3352.7,0.59661]
[1737028448936,0.59662,3352.8,3352.7,4.16932208]
[1737028450336,0.59662,3352.8,3352.7,5.40832208]
[1737028450941,0.4562,3353.1,3352.7,4.81171208]
[1737028451138,0.4562,3353.1,3352.9,2.37563715]
[1737028451335,1.06285,3353.2,3353.1,0.59655]
[1737028451535,1.06285,3353.2,3353.1,0.96146208]
[1737028451736,1.06285,3353.2,3353.1,0.95804746]
[1737028452335,3.2078,3353.8,3353.1,0.36491208]
[1737028452543,0.59649,3353.6,3353.5,0.59646]
[1737028452734,0.59649,3353.6,3353.5,1.83546]
[1737028453239,0.59649,3353.6,3353.5,2.20176471]
[1737028453634,1.54755,3353.7,3353.6,0.59646]
[1737028453835,1.54755,3353.7,3353.6,0.96276471]
[1737028454338,0.59643,3354.0,3353.9,0.59639]
[1737028454534,0.59643,3354.0,3353.9,0.96269471]
[1737028455039,0.59643,3354.0,3353.9,1.93987229]
[1737028455236,0.48,3354.1,3354.0,0.59639]
[1737028455441,1.07638,3354.1,3354.0,1.35390856]
[1737028455736,0.48,3354.1,3354.0,1.35393441]
[1737028455934,3.2078,3354.6,3354.0,0.75754441]
[1737028456242,3.2078,3354.6,3354.3,0.59632]
[1737028456243,0.59634,3354.4,3354.3,0.59632]
[1737028456536,1.08371,3354.5,3354.4,0.59632]
[1737028457338,12.03219986,3355.7,3354.5,1.49077]
[1737028457643,0.59616,3355.3,3355.2,0.59617]
[1737028457836,0.9171,3355.5,3355.4,0.59614]
[1737028458141,0.4645,3355.5,3355.4,0.59614]
[1737028458340,10.54194986,3356.7,3355.2,6.82243715]
[1737028458341,0.59608,3355.8,3355.6,0.5961]
[1737028458644,0.59608,3355.8,3355.7,1.34079571]
[1737028458645,3.2078,3355.8,3355.7,1.34079571]
[1737028458844,0.59623,3354.9,3354.8,3.2078]
[1737028459035,0.59623,3354.9,3354.8,3.59792712]
[1737028459241,0.59623,3354.9,3354.8,4.83592712]
[1737028459442,0.59623,3354.9,3354.8,1.62812712]
[1737028459643,0.59623,3354.9,3354.8,0.38991493]
[1737028459840,0.59628,3354.7,3354.4,3.90285715]
[1737028460344,0.59628,3354.7,3354.5,1.62785105]
[1737028460546,0.59627,3354.8,3354.6,1.62785105]
[1737028460838,0.59627,3354.8,3354.7,0.38985105]
[1737028461039,0.59627,3354.8,3354.7,1.238]
[1737028461632,0.4741,3355.0,3354.7,1.238]
[1737028462233,0.4741,3355.0,3354.4,3.30653715]
[1737028462234,0.4741,3355.0,3354.4,2.37563715]
[1737028462540,0.59624,3354.9,3354.6,0.59627]
[1737028462848,0.4741,3355.0,3354.5,1.238]
[1737028463041,0.59623,3354.9,3354.5,1.238]
[1737028463346,0.59624,3354.9,3354.7,0.59626]
[1737028463742,0.4741,3355.0,3354.5,1.238]
[1737028464045,0.4741,3355.0,3354.7,2.37563715]
[1737028464242,0.4741,3355.0,3354.8,0.59624]
[1737028464441,0.4741,3355.0,3354.9,0.59623]
[1737028464643,0.4741,3355.0,3354.7,5.58343715]
[1737028464644,3.2078,3355.8,3355.2,0.59617]
[1737028464946,3.2078,3355.8,3355.2,1.238]
[1737028464947,0.59616,3355.3,3355.2,1.238]
[1737028465343,0.9437,3355.7,3354.7,3.80406]
[1737028465546,3.2078,3355.3,3354.7,3.2078]
[1737028465743,0.59625,3354.8,3354.7,3.2078]
[1737028466945,3.2078,3355.3,3354.6,1.238]
[1737028467147,0.9364,3354.7,3354.6,1.83429]
[1737028467748,0.9364,3354.7,3354.4,2.37563715]
[1737028467943,1.53267,3354.7,3354.6,1.238]
[1737028468244,0.9364,3354.7,3354.6,1.83429]
[1737028468445,1.53267,3354.7,3354.6,1.238]
[1737028469439,0.59626,3354.8,3354.6,1.83427]
[1737028469848,0.9182,3355.2,3354.6,1.83428]
[1737028470049,0.59626,3354.8,3354.6,1.83428]
[1737028470247,0.59626,3354.8,3354.6,1.238]